fUSD/lending_fUSD_20260430
["ID","MTS","AMOUNT","RATE_DAILY","PERIOD"]
[421345042,1777479047000,-3065.95,0.00021918,2]
[421345040,1777479047000,-151.0,0.00021918,2]
[421345038,1777479047000,-151.0,0.00021918,2]
[421345036,1777479047000,-151.0,0.00021918,2]
[421345034,1777479047000,-151.0,0.00021918,2]
[421345035,1777479047000,-151.0,0.00021918,2]
[421345039,1777479047000,-151.0,0.00021918,2]
[421344984,1777479047000,-350.0,0.00020964,2]
[421345044,1777479047000,-346.911512,0.00021918,2]
[421345011,1777479047000,-450.0,0.00021285,2]
[421345013,1777479047000,-541.0,0.00021285,2]
[421345045,1777479047000,-346.911512,0.00021918,2]
[421345014,1777479047000,-271.0,0.00021304,2]
[421345015,1777479047000,-200.0,0.00021304,2]
[421344991,1777479047000,-450.0,0.00021,2]
[421344987,1777479047000,-308.0,0.00020964,2]
[421344994,1777479047000,-565.0,0.00021,2]
[421344988,1777479047000,-3403.34044689,0.00021,7]
[421344986,1777479047000,-350.0,0.00020964,2]
[421344989,1777479047000,-1205.58850219,0.00021,2]
[421344996,1777479047000,-1041.0,0.00021,2]
[421344995,1777479047000,-852.0,0.00021,2]
[421344998,1777479047000,-403.0,0.00021,2]
[421344997,1777479047000,-638.0,0.00021,2]
[421345002,1777479047000,-2853.58311217,0.00021033,2]
[421345001,1777479047000,-500.0,0.00021018,2]
[421344990,1777479047000,-198.9750848,0.00021,2]
[421345005,1777479047000,-450.0,0.00021285,2]
[421345012,1777479047000,-450.0,0.00021285,2]
[421345004,1777479047000,-286.0,0.00021276,2]
[421345017,1777479047000,-200.0,0.00021304,2]
[421345009,1777479047000,-450.0,0.00021285,2]
[421345010,1777479047000,-450.0,0.00021285,2]
[421345008,1777479047000,-450.0,0.00021285,2]
[421344993,1777479047000,-186.0,0.00021,2]
[421345007,1777479047000,-450.0,0.00021285,2]
[421345003,1777479047000,-1117.0,0.0002107,2]
[421344999,1777479047000,-3570.0,0.00021,2]
[421345000,1777479047000,-2000.0,0.00021018,2]
[421345006,1777479047000,-450.0,0.00021285,2]
[421345018,1777479047000,-200.0,0.00021304,2]
[421345088,1777479048000,-166.0,0.00021918,2]
[421345086,1777479048000,-166.0,0.00021918,2]
[421345085,1777479048000,-819.06,0.00021918,5]
[421345083,1777479048000,-223.429909,0.00021918,2]
[421345089,1777479048000,-713.8288736,0.00021918,2]
[421345080,1777479048000,-223.429909,0.00021918,2]
[421345078,1777479048000,-223.429909,0.00021918,2]
[421345079,1777479048000,-223.429909,0.00021918,2]
[421345073,1777479048000,-223.429909,0.00021918,2]
[421345072,1777479048000,-223.429909,0.00021918,2]
[421345081,1777479048000,-223.429909,0.00021918,2]
[421345082,1777479048000,-223.429909,0.00021918,2]
[421345087,1777479048000,-166.0,0.00021918,2]
[421345090,1777479048000,-1000.0,0.00021918,2]
[421345093,1777479048000,-1000.0,0.00021918,2]
[421345092,1777479048000,-1000.0,0.00021918,2]
[421345098,1777479048000,-650.0,0.00021918,2]
[421345101,1777479048000,-166.0,0.00021918,2]
[421345094,1777479048000,-1000.0,0.00021918,2]
[421345100,1777479048000,-166.0,0.00021918,2]
[421345095,1777479048000,-1000.0,0.00021918,2]
[421345096,1777479048000,-1000.0,0.00021918,2]
[421345099,1777479048000,-166.0,0.00021918,2]
[421345097,1777479048000,-1000.0,0.00021918,2]
[421345071,1777479048000,-223.429909,0.00021918,2]
[421345084,1777479048000,-5000.0,0.00021918,2]
[421345091,1777479048000,-1000.0,0.00021918,2]
[421345066,1777479048000,-223.429909,0.00021918,2]
[421345075,1777479048000,-223.429909,0.00021918,2]
[421345103,1777479048000,-172.0,0.00021918,2]
[421345046,1777479048000,-346.911512,0.00021918,2]
[421345055,1777479048000,-346.911512,0.00021918,2]
[421345054,1777479048000,-346.911512,0.00021918,2]
[421345048,1777479048000,-346.911512,0.00021918,2]
[421345050,1777479048000,-346.911512,0.00021918,2]
[421345047,1777479048000,-346.911512,0.00021918,2]
[421345049,1777479048000,-346.911512,0.00021918,2]
[421345052,1777479048000,-346.911512,0.00021918,2]
[421345051,1777479048000,-346.911512,0.00021918,2]
[421345053,1777479048000,-346.911512,0.00021918,2]
[421345057,1777479048000,-346.911512,0.00021918,2]
[421345076,1777479048000,-223.429909,0.00021918,2]
[421345058,1777479048000,-346.911512,0.00021918,2]
[421345063,1777479048000,-1001.4,0.00021918,2]
[421345060,1777479048000,-346.911512,0.00021918,2]
[421345064,1777479048000,-223.429909,0.00021918,2]
[421345062,1777479048000,-346.911509,0.00021918,2]
[421345059,1777479048000,-346.911512,0.00021918,2]
[421345061,1777479048000,-346.911512,0.00021918,2]
[421345065,1777479048000,-223.429909,0.00021918,2]
[421345067,1777479048000,-223.429909,0.00021918,2]
[421345068,1777479048000,-223.429909,0.00021918,2]
[421345069,1777479048000,-223.429909,0.00021918,2]
[421345074,1777479048000,-223.429909,0.00021918,2]
[421345077,1777479048000,-223.429909,0.00021918,2]
[421345056,1777479048000,-346.911512,0.00021918,2]
[421345102,1777479048000,-166.0,0.00021918,2]
[421345070,1777479048000,-223.429909,0.00021918,2]
[421345106,1777479048000,-150.0,0.00021918,2]
[421345131,1777479048000,-500.0,0.00021918,2]
[421345132,1777479048000,-500.0,0.00021918,2]
[421345134,1777479048000,-500.0,0.00021918,2]
[421345141,1777479048000,-500.0,0.00021918,2]
[421345139,1777479048000,-500.0,0.00021918,2]
[421345142,1777479048000,-500.0,0.00021918,2]
[421345144,1777479048000,-500.0,0.00021918,2]
[421345146,1777479048000,-500.0,0.00021918,2]
[421345145,1777479048000,-500.0,0.00021918,2]
[421345143,1777479048000,-500.0,0.00021918,2]
[421345147,1777479048000,-500.0,0.00021918,2]
[421345148,1777479048000,-500.0,0.00021918,2]
[421345135,1777479048000,-500.0,0.00021918,2]
[421345149,1777479048000,-500.0,0.00021918,2]
[421345160,1777479048000,-505.15158016,0.00021999,2]
[421345158,1777479048000,-1041.28,0.00021999,2]
[421345159,1777479048000,-500.0,0.00021999,2]
[421345150,1777479048000,-500.0,0.00021918,2]
[421345152,1777479048000,-500.0,0.00021918,2]
[421345151,1777479048000,-500.0,0.00021918,2]
[421345153,1777479048000,-500.0,0.00021918,2]
[421345155,1777479048000,-435.56015315,0.00021918,2]
[421345154,1777479048000,-500.0,0.00021918,2]
[421345156,1777479048000,-500.0,0.00021999,2]
[421345161,1777479048000,-164682.32203437,0.00022,4]
[421345112,1777479048000,-150.0,0.00021918,2]
[421345157,1777479048000,-1041.28,0.00021999,2]
[421345130,1777479048000,-150.0,0.00021918,2]
[421345140,1777479048000,-500.0,0.00021918,2]
[421345136,1777479048000,-500.0,0.00021918,2]
[421345111,1777479048000,-150.0,0.00021918,2]
[421345104,1777479048000,-166.0,0.00021918,2]
[421345113,1777479048000,-150.0,0.00021918,2]
[421345108,1777479048000,-150.0,0.00021918,2]
[421345109,1777479048000,-150.0,0.00021918,2]
[421345107,1777479048000,-150.0,0.00021918,2]
[421345110,1777479048000,-150.0,0.00021918,2]
[421345115,1777479048000,-286.6709491,0.00021918,2]
[421345117,1777479048000,-5500.0,0.00021918,2]
[421345121,1777479048000,-150.0,0.00021918,2]
[421345118,1777479048000,-150.0,0.00021918,2]
[421345120,1777479048000,-150.0,0.00021918,2]
[421345119,1777479048000,-150.0,0.00021918,2]
[421345114,1777479048000,-150.0,0.00021918,2]
[421345122,1777479048000,-150.0,0.00021918,2]
[421345123,1777479048000,-150.0,0.00021918,2]
[421345116,1777479048000,-150.0,0.00021918,2]
[421345126,1777479048000,-150.0,0.00021918,2]
[421345125,1777479048000,-150.0,0.00021918,2]
[421345124,1777479048000,-150.0,0.00021918,2]
[421345127,1777479048000,-150.0,0.00021918,2]
[421345137,1777479048000,-500.0,0.00021918,2]
[421345128,1777479048000,-150.0,0.00021918,2]
[421345138,1777479048000,-500.0,0.00021918,2]
[421345129,1777479048000,-150.0,0.00021918,2]
[421345105,1777479048000,-150.0,0.00021918,2]
[421345133,1777479048000,-500.0,0.00021918,2]
[421345163,1777479049000,-346.89703024,0.00022,4]
[421345162,1777479049000,-346.01253943,0.00022,4]
[421345187,1777479050000,-294.887679,0.00022,2]
[421345182,1777479050000,-403.0,0.00022,2]
[421345179,1777479050000,-852.0,0.00022,2]
[421345181,1777479050000,-638.0,0.00022,2]
[421345186,1777479050000,-276.444942,0.00022,2]
[421345188,1777479050000,-276.444946,0.00022,2]
[421345183,1777479050000,-276.444942,0.00022,2]
[421345185,1777479050000,-294.887679,0.00022,2]
[421345180,1777479050000,-1041.0,0.00022,2]
[421345178,1777479050000,-565.0,0.00022,2]
[421345177,1777479050000,-186.0,0.00022,2]
[421345175,1777479050000,-160.0,0.00022,2]
[421345170,1777479050000,-3285.937,0.00017938,2]
[421345173,1777479050000,-872.752381,0.0002,2]
[421345172,1777479050000,-756.0,0.0001863,5]
[421345176,1777479050000,-554.0,0.00022,2]
[421345174,1777479050000,-198165.21072126,0.00022,4]
[421345169,1777479050000,-944.0,0.00016986,2]
[421345167,1777479050000,-193.27895975,0.00013698,2]
[421345168,1777479050000,-6036.0,0.00014938,2]
[421345166,1777479050000,-2120.66583692,0.00011938,2]
[421345164,1777479050000,-3035.68445,0.00011938,2]
[421345165,1777479050000,-879.64971308,0.00011938,2]
[421345171,1777479050000,-3788.0,0.0001863,5]
[421345184,1777479050000,-276.444942,0.00022,2]
[421345192,1777479050000,-3000.0,0.00022,2]
[421345191,1777479050000,-294.887687,0.00022,2]
[421345189,1777479050000,-294.887679,0.00022,2]
[421345212,1777479050000,-2000.0,0.00022404,2]
[421345213,1777479050000,-2000.0,0.00022404,2]
[421345208,1777479050000,-500.0,0.00022082,2]
[421345209,1777479050000,-242.94973128,0.0002211,2]
[421345210,1777479050000,-1117.0,0.00022124,2]
[421345211,1777479050000,-2552.6,0.00022353,2]
[421345206,1777479050000,-200.0,0.00022044,2]
[421345207,1777479050000,-159.0,0.00022044,2]
[421345205,1777479050000,-200.0,0.00022044,2]
[421345199,1777479050000,-200.0,0.00022044,2]
[421345201,1777479050000,-200.0,0.00022044,2]
[421345214,1777479050000,-1452.0,0.00022404,2]
[421345202,1777479050000,-200.0,0.00022044,2]
[421345203,1777479050000,-200.0,0.00022044,2]
[421345197,1777479050000,-187.0,0.00022012,2]
[421345190,1777479050000,-3570.0,0.00022,2]
[421345198,1777479050000,-236.01,0.00022019,30]
[421345195,1777479050000,-3000.0,0.00022,2]
[421345204,1777479050000,-200.0,0.00022044,2]
[421345196,1777479050000,-150.0,0.00022012,2]
[421345194,1777479050000,-3000.0,0.00022,2]
[421345193,1777479050000,-3000.0,0.00022,2]
[421345200,1777479050000,-200.0,0.00022044,2]
[421345252,1777479051000,-554.0,0.00023,2]
[421345249,1777479051000,-344.14546929,0.00023,2]
[421345248,1777479051000,-4742.03587936,0.00023,2]
[421345240,1777479051000,-400.0,0.0002268,2]
[421345242,1777479051000,-228.0,0.0002268,2]
[421345247,1777479051000,-200.0,0.00023,8]
[421345245,1777479051000,-150.0,0.00022834,2]
[421345251,1777479051000,-500.0,0.00023,2]
[421345250,1777479051000,-543.05,0.00023,7]
[421345253,1777479051000,-186.0,0.00023,2]
[421345268,1777479051000,-400.65618307,0.000235,2]
[421345255,1777479051000,-852.0,0.00023,2]
[421345254,1777479051000,-565.0,0.00023,2]
[421345257,1777479051000,-638.0,0.00023,2]
[421345258,1777479051000,-403.0,0.00023,2]
[421345256,1777479051000,-1041.0,0.00023,2]
[421345267,1777479051000,-543.05,0.000233,7]
[421345260,1777479051000,-226.16685341,0.00023014,2]
[421345262,1777479051000,-500.0,0.00023014,7]
[421345266,1777479051000,-185.45,0.00023287,2]
[421345263,1777479051000,-661.68452283,0.00023152,2]
[421345246,1777479051000,-3025.55964813,0.00022855,66]
[421345269,1777479051000,-7000.0,0.00023562,2]
[421345259,1777479051000,-3570.0,0.00023,2]
[421345243,1777479051000,-529.20110109,0.0002271,2]
[421345230,1777479051000,-750.0,0.00022466,2]
[421345239,1777479051000,-400.0,0.0002268,2]
[421345265,1777479051000,-150.0,0.0002326,21]
[421345216,1777479051000,-600.0,0.00022404,2]
[421345215,1777479051000,-600.0,0.00022404,2]
[421345218,1777479051000,-600.0,0.00022404,2]
[421345220,1777479051000,-600.0,0.00022404,2]
[421345217,1777479051000,-600.0,0.00022404,2]
[421345221,1777479051000,-513.0,0.00022404,2]
[421345223,1777479051000,-416.19,0.00022466,2]
[421345222,1777479051000,-201.72,0.00022466,2]
[421345219,1777479051000,-600.0,0.00022404,2]
[421345225,1777479051000,-286.5,0.00022466,2]
[421345244,1777479051000,-500.0,0.0002274,7]
[421345224,1777479051000,-483.47,0.00022466,2]
[421345228,1777479051000,-570.65,0.00022466,2]
[421345227,1777479051000,-215.22,0.00022466,2]
[421345231,1777479051000,-5271.19,0.00022562,2]
[421345229,1777479051000,-6000.0,0.00022466,2]
[421345232,1777479051000,-3645.79579601,0.000226,2]
[421345237,1777479051000,-400.0,0.0002268,2]
[421345234,1777479051000,-400.0,0.0002268,2]
[421345233,1777479051000,-400.0,0.0002268,2]
[421345235,1777479051000,-400.0,0.0002268,2]
[421345238,1777479051000,-400.0,0.0002268,2]
[421345241,1777479051000,-400.0,0.0002268,2]
[421345226,1777479051000,-575.0,0.00022466,2]
[421345270,1777479051000,-3532.0,0.00023571,2]
[421345236,1777479051000,-400.0,0.0002268,2]
[421345261,1777479051000,-6500.0,0.00023014,2]
[421345300,1777479051000,-638.0,0.00024,2]
[421345302,1777479051000,-3570.0,0.00024,2]
[421345301,1777479051000,-403.0,0.00024,2]
[421345304,1777479051000,-176.51,0.0002411,2]
[421345303,1777479051000,-236.01,0.00024037,60]
[421345306,1777479051000,-7500.0,0.0002411,2]
[421345309,1777479051000,-7386.0,0.000242,2]
[421345305,1777479051000,-250.69,0.0002411,2]
[421345308,1777479051000,-980.25329907,0.00024145,2]
[421345307,1777479051000,-3069.8955399,0.00024116,73]
[421345310,1777479051000,-1041.28,0.00024209,2]
[421345297,1777479051000,-565.0,0.00024,2]
[421345312,1777479051000,-980.25329907,0.00024215,2]
[421345311,1777479051000,-3742.4170609,0.0002421,2]
[421345314,1777479051000,-2552.6,0.00024324,2]
[421345317,1777479051000,-1117.0,0.00024392,2]
[421345319,1777479051000,-980.25329907,0.00024426,7]
[421345320,1777479051000,-980.25329907,0.00024496,7]
[421345316,1777479051000,-163.82293254,0.00024374,2]
[421345318,1777479051000,-543.05,0.000244,7]
[421345323,1777479051000,-710.42021377,0.0002463,2]
[421345321,1777479051000,-980.25329907,0.00024566,7]
[421345322,1777479051000,-187.46,0.00024566,2]
[421345264,1777479051000,-1117.0,0.0002323,2]
[421345315,1777479051000,-980.25329907,0.00024356,7]
[421345298,1777479051000,-852.0,0.00024,2]
[421345313,1777479051000,-980.25329907,0.00024285,2]
[421345296,1777479051000,-186.0,0.00024,2]
[421345295,1777479051000,-554.0,0.00024,2]
[421345275,1777479051000,-416.0,0.00023602,2]
[421345274,1777479051000,-2000.0,0.000236,2]
[421345280,1777479051000,-5051.35772111,0.000238,2]
[421345279,1777479051000,-1049.0,0.00023745,2]
[421345273,1777479051000,-1220.0,0.000236,2]
[421345278,1777479051000,-283.46,0.00023726,2]
[421345272,1777479051000,-1350.0,0.00023571,2]
[421345277,1777479051000,-1663.0,0.00023602,2]
[421345276,1777479051000,-895.0,0.00023602,2]
[421345281,1777479051000,-2000.0,0.00023818,2]
[421345283,1777479051000,-150.0,0.00023834,2]
[421345292,1777479051000,-3600.0,0.00024,2]
[421345271,1777479051000,-623.0,0.00023571,2]
[421345289,1777479051000,-559.43359795,0.00023999,2]
[421345293,1777479051000,-1034.20781449,0.00024,2]
[421345282,1777479051000,-500.0,0.00023818,2]
[421345285,1777479051000,-2002.5263356,0.00023896,2]
[421345284,1777479051000,-3168.901364,0.00023896,2]
[421345286,1777479051000,-14151.4602414,0.00023896,2]
[421345290,1777479051000,-981.0,0.00024,2]
[421345287,1777479051000,-777.7898766,0.00023896,2]
[421345291,1777479051000,-1317.0,0.00024,2]
[421345288,1777479051000,-236.46167873,0.00023981,7]
[421345294,1777479051000,-1250.40544415,0.00024,2]
[421345299,1777479051000,-1041.0,0.00024,2]
[421345360,1777479052000,-300.0,0.00024658,2]
[421345352,1777479052000,-300.0,0.00024658,2]
[421345364,1777479052000,-300.0,0.00024658,2]
[421345369,1777479052000,-300.0,0.00024658,2]
[421345361,1777479052000,-300.0,0.00024658,2]
[421345353,1777479052000,-300.0,0.00024658,2]
[421345358,1777479052000,-300.0,0.00024658,2]
[421345357,1777479052000,-300.0,0.00024658,2]
[421345350,1777479052000,-300.0,0.00024658,2]
[421345354,1777479052000,-300.0,0.00024658,2]
[421345363,1777479052000,-300.0,0.00024658,2]
[421345351,1777479052000,-300.0,0.00024658,2]
[421345362,1777479052000,-300.0,0.00024658,2]
[421345371,1777479052000,-300.0,0.00024658,2]
[421345367,1777479052000,-300.0,0.00024658,2]
[421345365,1777479052000,-300.0,0.00024658,2]
[421345368,1777479052000,-300.0,0.00024658,2]
[421345366,1777479052000,-300.0,0.00024658,2]
[421345374,1777479052000,-300.0,0.00024658,2]
[421345372,1777479052000,-300.0,0.00024658,2]
[421345373,1777479052000,-300.0,0.00024658,2]
[421345378,1777479052000,-300.0,0.00024658,2]
[421345379,1777479052000,-300.0,0.00024658,2]
[421345381,1777479052000,-300.0,0.00024658,2]
[421345382,1777479052000,-300.0,0.00024658,2]
[421345370,1777479052000,-300.0,0.00024658,2]
[421345356,1777479052000,-300.0,0.00024658,2]
[421345326,1777479052000,-980.25329907,0.00024636,7]
[421345359,1777479052000,-300.0,0.00024658,2]
[421345324,1777479052000,-355.21010689,0.0002463,2]
[421345375,1777479052000,-300.0,0.00024658,2]
[421345325,1777479052000,-177.60505345,0.0002463,2]
[421345327,1777479052000,-150.0,0.00024658,2]
[421345329,1777479052000,-300.0,0.00024658,2]
[421345328,1777479052000,-6714.63300231,0.00024658,2]
[421345331,1777479052000,-300.0,0.00024658,2]
[421345330,1777479052000,-300.0,0.00024658,2]
[421345332,1777479052000,-300.0,0.00024658,2]
[421345333,1777479052000,-300.0,0.00024658,2]
[421345334,1777479052000,-300.0,0.00024658,2]
[421345336,1777479052000,-300.0,0.00024658,2]
[421345355,1777479052000,-300.0,0.00024658,2]
[421345335,1777479052000,-300.0,0.00024658,2]
[421345339,1777479052000,-300.0,0.00024658,2]
[421345337,1777479052000,-300.0,0.00024658,2]
[421345344,1777479052000,-300.0,0.00024658,2]
[421345343,1777479052000,-300.0,0.00024658,2]
[421345342,1777479052000,-300.0,0.00024658,2]
[421345347,1777479052000,-300.0,0.00024658,2]
[421345346,1777479052000,-300.0,0.00024658,2]
[421345341,1777479052000,-300.0,0.00024658,2]
[421345340,1777479052000,-300.0,0.00024658,2]
[421345345,1777479052000,-300.0,0.00024658,2]
[421345348,1777479052000,-300.0,0.00024658,2]
[421345349,1777479052000,-300.0,0.00024658,2]
[421345338,1777479052000,-300.0,0.00024658,2]
[421345377,1777479052000,-300.0,0.00024658,2]
[421345376,1777479052000,-300.0,0.00024658,2]
[421345384,1777479052000,-300.0,0.00024658,2]
[421345410,1777479052000,-300.0,0.00024658,2]
[421345412,1777479052000,-300.0,0.00024658,2]
[421345417,1777479052000,-5119.0,0.00024658,2]
[421345414,1777479052000,-300.0,0.00024658,2]
[421345415,1777479052000,-300.0,0.00024658,2]
[421345416,1777479052000,-300.0,0.00024658,2]
[421345420,1777479052000,-154.271573,0.00024658,2]
[421345425,1777479052000,-154.271573,0.00024658,2]
[421345421,1777479052000,-154.271573,0.00024658,2]
[421345431,1777479052000,-154.271573,0.00024658,2]
[421345424,1777479052000,-154.271573,0.00024658,2]
[421345422,1777479052000,-154.271573,0.00024658,2]
[421345408,1777479052000,-300.0,0.00024658,2]
[421345426,1777479052000,-154.271573,0.00024658,2]
[421345429,1777479052000,-154.271573,0.00024658,2]
[421345428,1777479052000,-154.271573,0.00024658,2]
[421345430,1777479052000,-154.271573,0.00024658,2]
[421345433,1777479052000,-154.271573,0.00024658,2]
[421345432,1777479052000,-154.271573,0.00024658,2]
[421345435,1777479052000,-151.0,0.00024658,2]
[421345437,1777479052000,-151.0,0.00024658,2]
[421345439,1777479052000,-151.0,0.00024658,2]
[421345434,1777479052000,-154.271573,0.00024658,2]
[421345436,1777479052000,-154.271573,0.00024658,2]
[421345438,1777479052000,-154.271573,0.00024658,2]
[421345380,1777479052000,-300.0,0.00024658,2]
[421345427,1777479052000,-154.271573,0.00024658,2]
[421345411,1777479052000,-300.0,0.00024658,2]
[421345423,1777479052000,-154.271573,0.00024658,2]
[421345419,1777479052000,-154.271573,0.00024658,2]
[421345409,1777479052000,-300.0,0.00024658,2]
[421345385,1777479052000,-300.0,0.00024658,2]
[421345386,1777479052000,-300.0,0.00024658,2]
[421345392,1777479052000,-300.0,0.00024658,2]
[421345391,1777479052000,-300.0,0.00024658,2]
[421345388,1777479052000,-300.0,0.00024658,2]
[421345387,1777479052000,-300.0,0.00024658,2]
[421345394,1777479052000,-300.0,0.00024658,2]
[421345393,1777479052000,-300.0,0.00024658,2]
[421345390,1777479052000,-300.0,0.00024658,2]
[421345389,1777479052000,-300.0,0.00024658,2]
[421345396,1777479052000,-300.0,0.00024658,2]
[421345405,1777479052000,-300.0,0.00024658,2]
[421345383,1777479052000,-300.0,0.00024658,2]
[421345406,1777479052000,-300.0,0.00024658,2]
[421345395,1777479052000,-300.0,0.00024658,2]
[421345413,1777479052000,-300.0,0.00024658,2]
[421345407,1777479052000,-300.0,0.00024658,2]
[421345397,1777479052000,-300.0,0.00024658,2]
[421345399,1777479052000,-300.0,0.00024658,2]
[421345400,1777479052000,-300.0,0.00024658,2]
[421345418,1777479052000,-5119.0,0.00024658,2]
[421345404,1777479052000,-300.0,0.00024658,2]
[421345402,1777479052000,-300.0,0.00024658,2]
[421345401,1777479052000,-300.0,0.00024658,2]
[421345403,1777479052000,-300.0,0.00024658,2]
[421345398,1777479052000,-300.0,0.00024658,2]
[421345491,1777479053000,-1041.28,0.00024999,2]
[421345478,1777479053000,-1000.0,0.00024658,2]
[421345477,1777479053000,-806.148038,0.00024658,2]
[421345468,1777479053000,-806.148043,0.00024658,2]
[421345472,1777479053000,-806.148043,0.00024658,2]
[421345475,1777479053000,-806.148043,0.00024658,2]
[421345473,1777479053000,-806.148043,0.00024658,2]
[421345471,1777479053000,-806.148043,0.00024658,2]
[421345476,1777479053000,-806.148043,0.00024658,2]
[421345470,1777479053000,-806.148043,0.00024658,2]
[421345481,1777479053000,-163.82293254,0.00024716,7]
[421345474,1777479053000,-806.148043,0.00024658,2]
[421345485,1777479053000,-47243.5299609,0.000249,2]
[421345484,1777479053000,-980.25329907,0.00024846,14]
[421345486,1777479053000,-980.25329907,0.00024916,14]
[421345480,1777479053000,-980.25329907,0.00024706,7]
[421345482,1777479053000,-980.25329907,0.00024776,14]
[421345487,1777479053000,-500.0,0.00024932,7]
[421345489,1777479053000,-1041.28,0.00024999,2]
[421345490,1777479053000,-1041.28,0.00024999,2]
[421345488,1777479053000,-980.25329907,0.00024987,14]
[421345500,1777479053000,-209.57283548,0.00025,2]
[421345493,1777479053000,-1041.3,0.00024999,2]
[421345494,1777479053000,-18367.0,0.00025,10]
[421345496,1777479053000,-7199.03780148,0.00025,2]
[421345469,1777479053000,-806.148043,0.00024658,2]
[421345483,1777479053000,-150.0,0.00024834,2]
[421345479,1777479053000,-193.28,0.00024658,2]
[421345492,1777479053000,-1041.28,0.00024999,2]
[421345466,1777479053000,-806.148043,0.00024658,2]
[421345443,1777479053000,-151.0,0.00024658,2]
[421345441,1777479053000,-151.0,0.00024658,2]
[421345440,1777479053000,-154.271573,0.00024658,2]
[421345442,1777479053000,-154.271577,0.00024658,2]
[421345444,1777479053000,-151.0,0.00024658,2]
[421345447,1777479053000,-151.0,0.00024658,2]
[421345450,1777479053000,-151.0,0.00024658,2]
[421345455,1777479053000,-151.0,0.00024658,2]
[421345448,1777479053000,-151.0,0.00024658,2]
[421345449,1777479053000,-151.0,0.00024658,2]
[421345453,1777479053000,-151.0,0.00024658,2]
[421345451,1777479053000,-151.0,0.00024658,2]
[421345462,1777479053000,-806.148043,0.00024658,2]
[421345454,1777479053000,-151.0,0.00024658,2]
[421345446,1777479053000,-151.0,0.00024658,2]
[421345452,1777479053000,-151.0,0.00024658,2]
[421345457,1777479053000,-1257.63,0.00024658,2]
[421345456,1777479053000,-210.699704,0.00024658,2]
[421345467,1777479053000,-806.148043,0.00024658,2]
[421345458,1777479053000,-806.148043,0.00024658,2]
[421345461,1777479053000,-806.148043,0.00024658,2]
[421345464,1777479053000,-806.148043,0.00024658,2]
[421345459,1777479053000,-806.148043,0.00024658,2]
[421345463,1777479053000,-806.148043,0.00024658,2]
[421345465,1777479053000,-806.148043,0.00024658,2]
[421345460,1777479053000,-806.148043,0.00024658,2]
[421345445,1777479053000,-151.0,0.00024658,2]
[421345495,1777479053000,-3073.87867705,0.00025,2]
[421345543,1777479053000,-250.0,0.00025205,2]
[421345502,1777479053000,-2000.0,0.00025,2]
[421345530,1777479053000,-150.0,0.00025,2]
[421345533,1777479053000,-150.0,0.00025,2]
[421345531,1777479053000,-150.0,0.00025,2]
[421345536,1777479053000,-3580.55100243,0.00025,2]
[421345537,1777479053000,-980.25329907,0.00025057,14]